[Event "51st Rilton Cup 2023-24"]
[Site "Stockholm"]
[Date "2023.12.30"]
[Round "4.11"]
[White "Nyysti, Sampsa"]
[Black "Subelj, Jan"]
[Result "1-0"]
[ECO "B11"]
[WhiteElo "2339"]
[BlackElo "2512"]
[Annotator "TA"]
[PlyCount "119"]
[EventDate "2023.12.27"]
[EventType "swiss"]
[EventCountry "SWE"]
[SourceTitle "playchess.com"]
[Source "ChessBase"]
[SourceQuality "1"]
[TimeControl "40/5400+30:1800+30"]

{[%evp 10,119,32,17,15,16,30,22,21,20,20,1,4,0,0,0,-11,0,38,27,72,72,73,66,55,60,69,69,69,72,76,53,49,52,52,62,57,54,54,56,108,105,107,106,108,0,83,0,100,94,92,91,120,114,114,107,121,99,95,0,111,0,92,47,158,86,156,163,159,156,166,114,133,120,249,154,300,269,401,394,369,239,243,239,281,268,270,268,371,295,290,262,295,259,256,254,281,216,275,283,283,298,293,290,318,311,298,298,285,199,199,199]} 1. e4 {[%emt 0:00:03]} c6 {[%emt 0:00:25]} 2. Nf3 {[%emt 0:00:20]} d5 {[%emt 0:00:28]} 3. Nc3 {[%emt 0:00:05]} Bg4 {[%emt 0:02:37]} 4. h3 {[%emt 0:00:13]} Bxf3 {[%emt 0:00:11]} 5. Qxf3 {[%emt 0:00:05]} Nf6 {[%emt 0:00:40]} 6. Be2 {[%emt 0:04:35]} e6 {[%emt 0:02:19] B11: Caro-Kann: Two Knights Variation.} 7. O-O {[%emt 0:03:19]} Bc5 {[%emt 0:02:22]} 8. Rd1 {[%emt 0:05:12] 8.d3 is vanishing.} Bd4 {[%emt 0:01:46] The position is equal.} 9. exd5 {[%emt 0:01:53]} cxd5 {[%emt 0:04:57]} 10. Nb5 {[%emt 0:03:37]} Nc6 {[%emt 0:06:45]} 11. Qa3 {[%emt 0:10:26]} Be5 {[%emt 0:01:08] White should prevent ...a6.} 12. d4 {[%emt 0:04:15]} Bb8 {[%emt 0:00:23]} 13. c4 {[%emt 0:28:22]} a6 {[%emt 0:17:14]} (13... dxc4 $5 {[%cal Ra7a6]} 14. Bf3 (14. Bxc4 a6 $17) 14... Qd7 $11) 14. Nc3 {[%emt 0:03:23] [#]} Bd6 $146 {[%emt 0:17:11]} ({Predecessor:} 14... dxc4 15. d5 exd5 16. Nxd5 Nxd5 17. Bxc4 Nce7 18. Qb3 Qc7 19. Bxd5 Nxd5 20. Qxd5 Qh2+ {½-½ Feuerstack,A (2421)-Lenic,L (2633) Bundesliga 1213 2012 (11.2)}) 15. Qb3 {[%emt 0:04:24][%csl LRb7,LRd5]} O-O {[%emt 0:02:00]} 16. cxd5 {[%emt 0:02:09]} (16. Qxb7 $2 Na5 $19) 16... Na5 {[%emt 0:00:38]} 17. Qc2 {[%emt 0:00:46]} Nxd5 {[%emt 0:00:27]} 18. Nxd5 {[%emt 0:02:16]} exd5 {[%emt 0:00:05]} 19. Bf3 {[%emt 0:02:28][%cal Oc2f5]} Qd7 {[%emt 0:05:33] Prevents Qf5} (19... Rc8 20. Qf5) 20. Bd2 {[%emt 0:02:39]} (20. Bxd5 $5 Rac8 21. Qd2 $16 (21. Qe4 Rcd8 $16)) 20... Rac8 {[%emt 0:02:30]} 21. Qd3 {[%emt 0:00:10]} Nc4 {[%emt 0:00:28]} 22. Bc3 {[%emt 0:00:39]} Nb6 {[%emt 0:03:16]} 23. b3 {[%emt 0:03:10]} Rc6 {[%emt 0:03:59]} 24. Re1 {[%emt 0:05:36]} Bb8 {[%emt 0:01:18]} ({Black should try} 24... g6 $14) 25. Bb4 $16 {[%emt 0:01:04]} Bd6 {[%emt 0:00:13]} 26. Bd2 {[%emt 0:00:37]} Bb8 {[%emt 0:03:52]} 27. Bb4 {[%emt 0:00:29]} Bd6 {[%emt 0:00:07]} 28. Bd2 {[%emt 0:00:12]} Bb8 $1 {[%emt 0:00:04]} 29. Rac1 {[%emt 0:03:42]} Rxc1 {[%emt 0:01:19]} 30. Bxc1 {[%emt 0:00:23]} Qd6 {[%emt 0:02:19]} 31. g3 {[%emt 0:00:20] Active counter play!} Nd7 {[%emt 0:00:00]} 32. Bf4 {[%emt 0:01:16]} Qb4 {[%emt 0:00:07]} 33. Bd2 {[%emt 0:00:13] A strong pair of Bishops.} Qd6 {[%emt 0:00:20]} 34. Bf4 {[%emt 0:01:34]} Qb4 {[%emt 0:00:05]} 35. Bd2 {[%emt 0:00:10]} Qd6 {[%emt 0:01:03]} 36. Qe2 {[%emt 0:01:04]} Rd8 {[%emt 0:02:00]} ({Black should play} 36... Qc6 $14) 37. Bf4 {[%emt 0:02:13]} (37. Bg5 $142 Nf6 38. Bxf6 gxf6 39. Bg4) 37... Qf8 {[%emt 0:00:55]} (37... Qc6 $142) 38. Bg5 $36 {[%emt 0:00:49][%mdl 2048] Black is under strong pressure.} (38. Bxd5 Bxf4 39. gxf4 b5 $16) 38... Nf6 {[%emt 0:00:07]} 39. Bxf6 {[%emt 0:00:48]} gxf6 {[%emt 0:00:05] Black is weak on the light squares} 40. Qd2 {[%emt 0:03:26]} (40. Bg4 $18) 40... Kh8 {[%emt 0:01:58]} 41. Kg2 {[%emt 0:02:16]} Qg7 {[%emt 0:01:32] Loses the game.} (41... Kg7 $16 {was necessary.}) 42. Bxd5 {[%emt 0:03:02][%mdl 64] [#] Deflection} h5 {[%emt 0:00:19]} (42... Qg5 $16 43. Qxg5 fxg5 44. Bxb7 (44. Bxf7 Bd6 $18) 44... a5) 43. Qa5 {[%emt 0:04:43]} b6 {[%emt 0:00:38]} (43... Rg8 $142 44. Bxb7 {[%mdl 64] Discovered Attack} Qg6) 44. Qxb6 $18 {[%emt 0:03:58]} (44. Qxa6 f5 45. Qxb6 Rg8 $18) 44... Rg8 {[%emt 0:00:05][%cal Rb8g3]} 45. Qb7 {[%emt 0:02:48][%cal Oe1e3] Re3! is the strong threat.} ({Less strong is} 45. Qxa6 Bxg3 46. Qd3 (46. fxg3 $2 Qxg3+ 47. Kf1 Qf4+ 48. Ke2 Re8+ {[%mdl 64] Skewer, Deflection} 49. Kd3 Rxe1 $19) 46... Bh4+ 47. Kh1 Bxf2 $16) 45... Bxg3 {[%emt 0:02:04]} 46. Qxf7 $1 {[%emt 0:00:15]} ({Inferior is} 46. fxg3 Qxg3+ 47. Kf1 Qd3+ 48. Re2 Qd1+ 49. Re1 Qd3+ 50. Re2 Qd1+ 51. Re1 Qd3+ $11) 46... Bc7+ {[%emt 0:00:17]} 47. Qxg7+ {[%emt 0:00:05]} Rxg7+ {[%emt 0:00:04][%mdl 4096] Endgame KRB-KRB} 48. Kf3 {[%emt 0:00:53]} Rd7 {[%emt 0:00:19]} 49. Bc6 {[%emt 0:00:55]} Rd8 {[%emt 0:00:23]} 50. Re6 {[%emt 0:01:02]} Bd6 {[%emt 0:00:35]} 51. Rxf6 {[%emt 0:00:17]} Kg7 {[%emt 0:00:03]} 52. Rf5 {[%emt 0:00:29]} Bb4 {[%emt 0:01:53]} 53. Bd5 {[%emt 0:00:14]} ({Don't take} 53. Rxh5 Rxd4 54. Be4 Rd2 55. Rg5+ Kh8 56. Rh5+ Kg7 57. Rg5+ Kh8 58. Rh5+ Kg7 $18) 53... Kg6 {[%emt 0:00:06]} 54. Be4 {[%emt 0:00:06] [#] Threatens to win with Rd5+.} Kg7 {[%emt 0:00:05]} 55. Rxh5 {[%emt 0:00:24]} Rxd4 {[%emt 0:01:02]} 56. Rd5 {[%emt 0:00:07]} Rxd5 {[%emt 0:00:17]} 57. Bxd5 {[%emt 0:00:01]} Bc5 {[%emt 0:00:08]} 58. Ke2 {[%emt 0:00:11]} Bd6 {[%emt 0:00:19]} 59. Kd3 {[%emt 0:00:08]} Kf6 {[%emt 0:00:33]} 60. Ke4 {[%emt 0:00:17] Weighted Error Value: White=0.24 (precise) /Black=0.23 (precise)} 1-0

[Event "51st Rilton Cup 2023-24"]
[Site "Stockholm"]
[Date "2023.12.30"]
[Round "4.12"]
[White "Hillarp Persson, Tiger"]
[Black "Citak, Selim"]
[Result "1-0"]
[ECO "E05"]
[WhiteElo "2493"]
[BlackElo "2350"]
[Annotator "TA"]
[PlyCount "127"]
[EventDate "2023.12.27"]
[EventType "swiss"]
[EventCountry "SWE"]
[SourceTitle "playchess.com"]
[Source "ChessBase"]
[SourceQuality "1"]
[TimeControl "40/5400+30:1800+30"]

{[%evp 19,127,14,30,0,8,9,11,4,2,4,4,3,5,0,9,10,14,12,9,4,0,0,0,0,13,7,0,0,20,8,17,17,17,17,43,14,14,14,14,14,15,8,8,0,0,0,0,0,197,166,234,182,281,263,266,280,270,258,272,271,279,266,266,214,218,218,219,213,257,250,250,246,395,395,387,371,368,350,723,724,665,613,613,613,609,609,577,577,658,628,626,572,848,819,1044,854,3894,2500,4148,2806,6079,6087,6079,6079,5171,5081,1579,1648,1420,1128]} 1. Nf3 {[%emt 0:00:05]} Nf6 {[%emt 0:03:15]} 2. g3 {[%emt 0:00:07]} d5 {[%emt 0:00:15]} 3. Bg2 {[%emt 0:00:06]} e6 {[%emt 0:00:19]} 4. O-O {[%emt 0:00:07]} Be7 {[%emt 0:00:20]} 5. c4 {[%emt 0:00:08]} O-O {[%emt 0:00:36]} 6. d4 {[%emt 0:00:20]} dxc4 {[%emt 0:00:32]} 7. Qc2 {[%emt 0:00:07]} a6 {[%emt 0:00:21]} 8. a4 {[%emt 0:00:07]} Bd7 {[%emt 0:00:41][%cal Bc8d7,Bd7c6,Bc6d5][%mdl 32]} 9. Qxc4 {[%emt 0:00:10]} Bc6 {[%emt 0:00:07]} 10. Bg5 {[%emt 0:00:43]} Bd5 {[%emt 0:00:34]} 11. Qc1 {[%emt 0:03:18] E05: Open Catalan: 5 Nf3 Be7.} Nbd7 {[%emt 0:00:26]} 12. Nc3 {[%emt 0:01:18] [#]} h6 $146 {[%emt 0:00:15]} ({Predecessor:} 12... Bxf3 13. Bxf3 c6 14. Qc2 a5 15. e4 Rc8 16. Be3 e5 17. Rad1 exd4 18. Bxd4 Qc7 {1-0 Kourousis,E (2393)-Medarde Santiago,L (2350) EU-ch blitz Katowice 2017 (17)}) 13. Bxf6 {[%emt 0:04:32] The position is equal.} Nxf6 {[%emt 0:01:12]} 14. Rd1 {[%emt 0:01:49]} Bxf3 {[%emt 0:06:09]} 15. Bxf3 {[%emt 0:00:08]} c6 {[%emt 0:00:09]} 16. h4 {[%emt 0:00:39]} a5 {[%emt 0:02:39]} 17. Kg2 {[%emt 0:15:32]} Qb6 {[%emt 0:04:25]} 18. Qc2 {[%emt 0:01:42]} Rfd8 {[%emt 0:03:26]} 19. e3 {[%emt 0:00:44][%cal Be2e3,Be3e4,Be4e5][%mdl 32]} h5 {[%emt 0:07:07]} 20. Rd3 {[%emt 0:01:58]} g6 {[%emt 0:01:25]} 21. Rad1 {[%emt 0:00:57]} Kg7 {[%emt 0:08:10]} 22. e4 {[%emt 0:14:26]} Rac8 {[%emt 0:04:09]} 23. Qe2 {[%emt 0:19:16]} Rd7 {[%emt 0:04:53]} 24. e5 {[%emt 0:02:42]} Nd5 {[%emt 0:00:30]} 25. Bxd5 {[%emt 0:01:22]} cxd5 {[%emt 0:00:23]} 26. Nb5 {[%emt 0:01:47]} Qd8 {[%emt 0:05:12]} 27. Rf3 {[%emt 0:01:18][%cal Bd3f3,Bf3f4,Bf4f6][%mdl 32]} Rc4 {[%emt 0:08:44]} 28. b3 {[%emt 0:00:44]} Rc6 {[%emt 0:00:07]} 29. Rf4 {[%emt 0:00:38]} Bb4 {[%emt 0:01:59]} 30. Rd3 {[%emt 0:01:54]} Rc1 {[%emt 0:04:02]} 31. Rdf3 {[%emt 0:01:13][%cal Ob5d6]} Qc8 {[%emt 0:05:17] ...Rb1 is the strong threat.} (31... Re1 {keeps more tension.} 32. Qc2 Qb6 33. g4 Qc6) 32. Nd6 {[%emt 0:05:41]} Bxd6 {[%emt 0:00:46]} 33. exd6 {[%emt 0:00:08]} Kg8 $2 {[%emt 0:13:13] [#] Black is on the road to losing.} (33... Rb1 $11 {and Black has nothing to worry.} 34. Qe5+ Kg8) 34. Rf6 $1 $18 {[%emt 0:07:18]} Qc2 {[%emt 0:02:58]} 35. Rxe6 {[%emt 0:00:11]} Qxe2 {[%emt 0:00:57]} (35... Qb1 $142 36. Re8+ Kh7) 36. Rxe2 {[%emt 0:00:07][%mdl 4096] Endgame KRR-KRR} Rc8 {[%emt 0:11:43]} 37. Re7 {[%emt 0:00:30]} Rxe7 {[%emt 0:00:06]} 38. dxe7 {[%emt 0:00:06] KR-KR} Re8 {[%emt 0:00:09]} 39. Re3 {[%emt 0:00:36]} f6 {[%emt 0:00:13]} 40. Re6 {[%emt 0:05:35]} Kf7 {[%emt 0:00:05]} 41. Rd6 {[%emt 0:30:13]} Kxe7 {[%emt 0:07:41]} 42. Rxd5 {[%emt 0:00:00]} b6 {[%emt 0:00:22]} 43. Kf3 {[%emt 0:00:00]} Rc8 {[%emt 0:01:25] [#]} 44. Rb5 $1 {[%emt 0:00:00]} Rc6 {[%emt 0:00:34]} 45. d5 {[%emt 0:00:00]} Rd6 {[%emt 0:04:37]} (45... Rc3+ {was worth a try.} 46. Ke4 Rc2) 46. Ke4 {[%emt 0:00:00]} Kd7 {[%emt 0:00:33]} 47. b4 {[%emt 0:00:00]} axb4 {[%emt 0:00:07]} 48. Rxb4 {[%emt 0:00:00] aiming for Rc4.} Kc7 $2 {[%emt 0:00:32]} (48... Ke7 49. f3 g5) 49. Rc4+ {[%emt 0:00:00] White is clearly winning.} Kb7 {[%emt 0:00:16]} 50. Kd4 {[%emt 0:00:00]} Rd8 {[%emt 0:02:08]} 51. Rc6 {[%emt 0:00:00]} Ra8 {[%emt 0:01:07]} 52. Rxf6 {[%emt 0:00:00]} Rxa4+ {[%emt 0:00:04]} 53. Ke5 {[%emt 0:00:00]} b5 {[%emt 0:01:42]} 54. Rxg6 {[%emt 0:00:00]} Ra2 {[%emt 0:02:16]} 55. Rf6 {[%emt 0:00:00]} b4 {[%emt 0:01:57]} 56. Rf4 {[%emt 0:00:00]} b3 {[%emt 0:00:27]} 57. Rb4+ {[%emt 0:00:00]} Kc7 {[%emt 0:00:17]} 58. Rxb3 {[%emt 0:00:00]} Rxf2 {[%emt 0:00:11]} 59. d6+ {[%emt 0:00:00]} Kd7 {[%emt 0:00:31]} 60. Rb7+ {[%emt 0:00:00]} Kd8 {[%emt 0:00:15]} 61. Rg7 {[%emt 0:00:00]} Rf3 {[%emt 0:01:11]} 62. Ke6 {[%emt 0:00:00] Rg8+ would kill now.} Re3+ {[%emt 0:00:14]} 63. Kf7 {[%emt 0:00:00] And now Rg5 would win.} Rd3 {[%emt 0:01:47]} 64. Rg6 {[%emt 0:00:00] Weighted Error Value: White=0.04 (flawless) /Black=0.21 (precise)} 1-0

[Event "51st Rilton Cup 2023-24"]
[Site "Stockholm"]
[Date "2023.12.30"]
[Round "4.13"]
[White "Koykka, Pekka"]
[Black "Bailet, Pierre"]
[Result "0-1"]
[ECO "E20"]
[WhiteElo "2351"]
[BlackElo "2492"]
[Annotator "TA"]
[PlyCount "72"]
[EventDate "2023.12.27"]
[EventType "swiss"]
[EventCountry "SWE"]
[SourceTitle "playchess.com"]
[Source "ChessBase"]
[SourceQuality "1"]
[TimeControl "40/5400+30:1800+30"]

{[%evp 10,72,0,14,13,14,20,15,15,8,23,14,15,9,17,11,12,0,-4,-9,0,-4,0,0,59,53,59,63,60,47,54,50,97,-19,-33,-18,-20,-54,-69,-74,-76,-63,-54,-93,-68,-89,-89,-89,-85,-92,-93,-274,-244,-663,-647,-5413,-5294,-12832,-12832,-12833,-12833,-12831,-1578,-1238,-1204]} 1. d4 {[%emt 0:00:05]} Nf6 {[%emt 0:00:23]} 2. c4 {[%emt 0:00:15]} e6 {[%emt 0:00:36]} 3. Nc3 {[%emt 0:00:07]} Bb4 {[%emt 0:00:16]} 4. f3 {[%emt 0:00:21][%cal Bf2f3,Bf3e4,Be4d5][%mdl 32]} d5 {[%emt 0:01:11]} 5. a3 {[%emt 0:00:22]} Be7 {[%emt 0:00:48]} 6. e4 {[%emt 0:00:16]} dxe4 {[%emt 0:00:30] E20: Nimzo-Indian: 4 g3 and 4 f3.} 7. fxe4 {[%emt 0:00:07]} c5 {[%emt 0:00:22]} 8. d5 {[%emt 0:00:12]} exd5 {[%emt 0:00:25] The position is equal.} 9. exd5 {[%emt 0:00:06]} O-O {[%emt 0:01:29]} 10. Be2 {[%emt 0:00:11]} Bd6 {[%emt 0:00:45]} 11. Nf3 {[%emt 0:00:43][%cal Bg1f3,Bf3h4,Bh4f5][%mdl 32]} Bg4 {[%emt 0:03:31]} 12. O-O {[%emt 0:00:28]} Re8 {[%emt 0:03:10] [#]} 13. Ra2 $146 {[%emt 0:18:12]} ({Predecessor:} 13. Nb5 a6 14. Nxd6 Qxd6 15. Qc2 Nbd7 16. h3 Bh5 17. Bd3 Bxf3 18. Rxf3 Ne5 19. Rf1 Nxd3 20. Qxd3 {1-0 Cheparinov,I (2667)-Svane,R (2615) FIDE World Cup 2021 (2.2)}) 13... Nbd7 {[%emt 0:18:26]} 14. Nb5 {[%emt 0:28:51]} Bb8 {[%emt 0:11:53]} 15. b3 {[%emt 0:30:54]} Nf8 {[%emt 0:20:34]} (15... a6 $5 16. Nc3 $8 h6 $11) 16. Nh4 {[%emt 0:03:50]} a6 {[%emt 0:08:57]} (16... Nxd5 $2 17. Bxg4 Bxh2+ 18. Kxh2 $18) ({Black should try} 16... Rxe2 $11 17. Rxe2 a6) 17. Bxg4 $14 {[%emt 0:02:22] Strongly threatening Nc3.} axb5 {[%emt 0:00:35]} 18. Nf5 {[%emt 0:04:01] Threatens to win with d6.} (18. Bg5 $5 {[%cal Rg5f6]}) 18... Be5 {[%emt 0:02:55]} 19. Bg5 {[%emt 0:02:05]} (19. cxb5 $5 {[%cal Rg4f3]} Ng6 20. d6 $14) 19... bxc4 {[%emt 0:01:06]} 20. bxc4 {[%emt 0:00:02]} Ng6 {[%emt 0:02:30]} (20... Qb6 $14 {was preferrable.}) 21. Qf3 {[%emt 0:01:16] [#]} (21. d6 $16) 21... Bxh2+ $1 $11 {[%emt 0:04:06][%mdl 64] Clearance} 22. Kh1 $1 {[%emt 0:03:18] aiming for Nxg7.} (22. Kxh2 $2 {loses.} Ne5 23. Qf4 (23. Nh6+ $2 gxh6 24. Bxf6 Nxf3+ $19) 23... Nfxg4+ 24. Kh1 f6 $19) 22... Ne5 {[%emt 0:02:47][%csl LRc4,LRf3,LRg4]} 23. Bxf6 {[%emt 0:01:01]} Qxf6 {[%emt 0:00:13]} 24. Qh3 {[%emt 0:00:17] Be2 would be deadly.} Nxg4 {[%emt 0:02:01]} 25. Qxg4 {[%emt 0:00:02]} Be5 {[%emt 0:00:19][%cal Bh2e5,Be5f6,Bf6d4][%mdl 32]} 26. Re2 {[%emt 0:01:40]} Qg6 $36 {[%emt 0:02:32][%mdl 2048] White is under pressure.} 27. Qh3 {[%emt 0:01:12]} Bf6 $1 {[%emt 0:03:46]} 28. Rxe8+ {[%emt 0:01:20]} Rxe8 {[%emt 0:00:05]} 29. Nd6 {[%emt 0:00:15][%csl LRb7,LRe8]} Rb8 {[%emt 0:01:43]} 30. Nxb7 $2 {[%emt 0:00:18] [#] This costs White the game.} h6 $1 $19 {[%emt 0:01:13]} 31. Nxc5 $2 {[%emt 0:01:12] [#]} (31. Na5 Rb1 32. Rxb1 (32. Qc8+ $2 Kh7 $19) 32... Qxb1+ 33. Kh2 Be5+ 34. g3 Qb2+ 35. Qg2) 31... Rb1 $1 {[%emt 0:00:16] Black is clearly winning.} 32. g4 {[%emt 0:00:36]} Bd4 {[%emt 0:00:52]} 33. Nd3 {[%emt 0:00:29]} Qe4+ {[%emt 0:00:54] White is weak on the dark squares} 34. Kh2 {[%emt 0:00:07]} Qe2+ {[%emt 0:00:34]} 35. Qg2 {[%emt 0:00:44]} Qxf1 {[%emt 0:01:08]} (35... Qxd3 $142 36. Rxb1 Be5+ 37. Kg1 Qxb1+ 38. Qf1 Qe4) 36. Qxf1 {[%emt 0:00:02]} Rxf1 {[%emt 0:00:10] Weighted Error Value: White=0.72/Black=0.24 (precise)} 0-1

[Event "51st Rilton Cup 2023-24"]
[Site "Stockholm"]
[Date "2023.12.30"]
[Round "4.14"]
[White "Tulchynskyi, Feliks"]
[Black "Rozentalis, Eduardas"]
[Result "1/2-1/2"]
[ECO "E53"]
[WhiteElo "2325"]
[BlackElo "2454"]
[Annotator "RC"]
[PlyCount "61"]
[EventDate "2023.12.27"]
[EventType "swiss"]
[EventCountry "SWE"]
[SourceTitle "playchess.com"]
[Source "ChessBase"]
[SourceQuality "1"]
[TimeControl "40/5400+30:1800+30"]

1. d4 {[%emt 0:02:11]} Nf6 {[%emt 0:00:10]} 2. c4 {[%emt 0:00:19]} e6 {[%emt 0:00:04]} 3. Nc3 {[%emt 0:00:07]} Bb4 {[%emt 0:00:04]} 4. e3 {[%emt 0:00:25]} d5 {[%emt 0:01:28]} 5. Bd3 {[%emt 0:05:50]} c5 {[%emt 0:01:47]} 6. Nf3 {[%emt 0:04:18]} O-O {[%emt 0:00:31]} 7. cxd5 {[%emt 0:00:36]} exd5 {[%emt 0:00:59]} 8. dxc5 {[%emt 0:00:25]} Nbd7 {[%emt 0:03:24]} 9. Bd2 {[%emt 0:01:38]} Nxc5 {[%emt 0:01:22]} 10. Be2 {[%emt 0:00:28]} Ne6 {[%emt 0:05:05]} 11. Qb3 {[%emt 0:02:04]} Ba5 {[%emt 0:08:12]} 12. O-O {[%emt 0:06:48]} d4 {[%emt 0:06:12]} 13. exd4 {[%emt 0:06:42]} Nxd4 {[%emt 0:01:29]} 14. Nxd4 {[%emt 0:00:16]} Qxd4 {[%emt 0:00:06]} 15. Rad1 {[%emt 0:08:14]} Qb6 {[%emt 0:02:48]} 16. Qxb6 {[%emt 0:08:09]} Bxb6 {[%emt 0:00:42]} 17. Bf3 {[%emt 0:06:33]} Ba5 {[%emt 0:11:28]} 18. Nd5 {[%emt 0:07:16]} Bxd2 {[%emt 0:00:53]} 19. Rxd2 {[%emt 0:04:36]} Nxd5 {[%emt 0:05:26]} 20. Bxd5 {[%emt 0:00:23]} Be6 {[%emt 0:00:42]} 21. Bxb7 {[%emt 0:08:32]} Rad8 {[%emt 0:01:23]} 22. Rxd8 {[%emt 0:01:17]} Rxd8 {[%emt 0:00:13]} 23. Bf3 {[%emt 0:00:09]} Rd2 {[%emt 0:02:53]} 24. Rd1 {[%emt 0:00:08]} Rxd1+ {[%emt 0:00:11]} 25. Bxd1 {[%emt 0:00:04]} Bxa2 {[%emt 0:00:06]} 26. f4 {[%emt 0:00:35]} h6 {[%emt 0:01:35]} 27. Kf2 {[%emt 0:01:00]} Kf8 {[%emt 0:00:26]} 28. Ke3 {[%emt 0:00:08]} Ke7 {[%emt 0:00:03]} 29. Kd4 {[%emt 0:00:09]} Kd6 {[%emt 0:00:04]} 30. g3 {[%emt 0:00:11]} Bd5 {[%emt 0:00:08]} 31. b4 {[%emt 0:00:00]} 1/2-1/2

[Event "51st Rilton Cup 2023-24"]
[Site "Stockholm"]
[Date "2023.12.30"]
[Round "4.15"]
[White "Hedman, Erik"]
[Black "Malek, Jan"]
[Result "0-1"]
[ECO "C54"]
[WhiteElo "2323"]
[BlackElo "2434"]
[Annotator "ChessBase"]
[PlyCount "76"]
[EventDate "2023.12.27"]
[EventType "swiss"]
[EventCountry "SWE"]
[SourceTitle "playchess.com"]
[Source "ChessBase"]
[SourceQuality "1"]
[TimeControl "40/5400+30:1800+30"]

1. e4 {[%emt 0:00:04]} e5 {[%emt 0:00:05]} 2. Nf3 {[%emt 0:00:03]} Nc6 {[%emt 0:00:06]} 3. Bc4 {[%emt 0:00:05]} Nf6 {[%emt 0:00:37]} 4. d3 {[%emt 0:00:04]} h6 {[%emt 0:00:08]} 5. c3 {[%emt 0:00:07]} Bc5 {[%emt 0:00:05]} 6. b4 {[%emt 0:00:35]} Be7 {[%emt 0:00:07]} 7. O-O {[%emt 0:02:09]} O-O {[%emt 0:00:37]} 8. Bb2 {[%emt 0:01:00]} d5 {[%emt 0:05:25]} 9. exd5 {[%emt 0:00:21]} Nxd5 {[%emt 0:00:08]} 10. b5 {[%emt 0:00:39]} Na5 {[%emt 0:02:47]} 11. Bxd5 {[%emt 0:00:40]} Qxd5 {[%emt 0:00:10]} 12. c4 {[%emt 0:00:04]} Qd8 {[%emt 0:00:49]} 13. Nxe5 {[%emt 0:00:55]} Bf6 {[%emt 0:18:17]} 14. Re1 {[%emt 0:15:15]} Re8 {[%emt 0:09:27]} 15. Qf3 {[%emt 0:19:54]} Qd6 {[%emt 0:09:02]} 16. Qg3 {[%emt 0:01:45]} Bf5 {[%emt 0:06:03]} 17. Nd2 {[%emt 0:20:40]} Qb4 {[%emt 0:03:26]} 18. Bd4 {[%emt 0:02:32]} Qxd2 {[%emt 0:05:50]} 19. Nf3 {[%emt 0:00:13]} Qxd3 {[%emt 0:02:27]} 20. Red1 {[%emt 0:05:52]} Bxd4 {[%emt 0:02:23]} 21. Rxd3 {[%emt 0:00:19]} Bxa1 {[%emt 0:00:01]} 22. Rd1 {[%emt 0:00:23]} Bf6 {[%emt 0:00:15]} 23. Qxc7 {[%emt 0:00:20]} b6 {[%emt 0:00:58]} 24. h3 {[%emt 0:02:02]} Rec8 {[%emt 0:01:35]} 25. Qf4 {[%emt 0:00:40]} Be6 {[%emt 0:00:07]} 26. Ne5 {[%emt 0:01:04]} Bxe5 {[%emt 0:01:08]} 27. Qxe5 {[%emt 0:01:13]} Rxc4 {[%emt 0:00:16]} 28. Rd3 {[%emt 0:02:03]} Rc5 {[%emt 0:00:24]} 29. Qf4 {[%emt 0:02:13]} Rxb5 {[%emt 0:03:42]} 30. Rg3 {[%emt 0:00:56]} Kh8 {[%emt 0:00:18]} 31. Qd4 {[%emt 0:00:19]} Rg8 {[%emt 0:00:31]} 32. a3 {[%emt 0:00:11]} Rc5 {[%emt 0:02:38]} 33. Kh2 {[%emt 0:01:21]} Nc6 {[%emt 0:00:09]} 34. Qd6 {[%emt 0:00:31]} Rd8 {[%emt 0:00:41]} 35. Qc7 {[%emt 0:02:18]} Rdd5 {[%emt 0:03:43]} 36. Qb7 {[%emt 0:01:07]} Kh7 {[%emt 0:00:34]} 37. Qa8 {[%emt 0:00:17]} Rd8 {[%emt 0:00:10]} 38. Qb7 {[%emt 0:00:04]} Rd2 {[%emt 0:00:20]} 0-1

[Event "51st Rilton Cup 2023-24"]
[Site "Stockholm"]
[Date "2023.12.30"]
[Round "4.16"]
[White "Oratovsky, Michael"]
[Black "Eggleston, David J"]
[Result "1-0"]
[ECO "C06"]
[WhiteElo "2421"]
[BlackElo "2353"]
[Annotator "ChessBase"]
[PlyCount "59"]
[EventDate "2023.12.27"]
[EventType "swiss"]
[EventCountry "SWE"]
[SourceTitle "playchess.com"]
[Source "ChessBase"]
[SourceQuality "1"]
[TimeControl "40/5400+30:1800+30"]

1. e4 {[%emt 0:02:03]} e6 {[%emt 0:00:23]} 2. d4 {[%emt 0:00:07]} d5 {[%emt 0:00:05]} 3. Nd2 {[%emt 0:00:05]} Nf6 {[%emt 0:00:06]} 4. e5 {[%emt 0:00:09]} Nfd7 {[%emt 0:00:06]} 5. c3 {[%emt 0:00:22]} c5 {[%emt 0:00:05]} 6. Ngf3 {[%emt 0:00:14]} Nc6 {[%emt 0:00:09]} 7. Bd3 {[%emt 0:00:04]} Be7 {[%emt 0:00:09]} 8. O-O {[%emt 0:00:21]} g5 {[%emt 0:00:07]} 9. Nb1 {[%emt 0:03:01]} g4 {[%emt 0:11:42]} 10. Ne1 {[%emt 0:05:56]} cxd4 {[%emt 0:02:49]} 11. cxd4 {[%emt 0:01:30]} h5 {[%emt 0:03:21]} 12. Be3 {[%emt 0:36:08]} Nb4 {[%emt 0:06:04]} 13. Be2 {[%emt 0:04:25]} Bg5 {[%emt 0:08:43]} 14. Nc3 {[%emt 0:22:27]} a6 {[%emt 0:02:27]} 15. Bxg5 {[%emt 0:04:52]} Qxg5 {[%emt 0:00:02]} 16. f4 {[%emt 0:00:09]} gxf3 {[%emt 0:05:01]} 17. Nxf3 {[%emt 0:00:29]} Qe3+ {[%emt 0:00:06]} 18. Kh1 {[%emt 0:00:05]} Nc6 {[%emt 0:00:42]} 19. Rc1 {[%emt 0:12:58]} h4 {[%emt 0:03:16]} 20. Na4 {[%emt 0:01:26]} f6 {[%emt 0:10:15]} 21. Rc3 {[%emt 0:02:16]} Qh6 {[%emt 0:00:15]} 22. exf6 {[%emt 0:00:44]} Nxf6 {[%emt 0:02:04]} 23. Nb6 {[%emt 0:01:19]} Rb8 {[%emt 0:00:23]} 24. Ne5 {[%emt 0:00:16]} O-O {[%emt 0:06:28]} 25. Rcf3 {[%emt 0:00:19]} Nh7 {[%emt 0:07:53]} 26. Bd3 {[%emt 0:00:48]} Rxf3 {[%emt 0:07:40]} 27. Qxf3 {[%emt 0:00:10]} Ng5 {[%emt 0:06:04]} 28. Qf4 {[%emt 0:00:15]} h3 {[%emt 0:00:09]} 29. gxh3 {[%emt 0:00:11]} Ne7 {[%emt 0:02:26]} 30. Rg1 {[%emt 0:00:40]} 1-0